Cogmind - Beta 14 @@@ ROGUE MODE // 2025.01.13 @ 23:28:17 Player: Isakabibble Result: Destroyed by H-61 Shepherd with Heavy Assault Cannon Performance ------------- Evolutions (2) 1000 Regions Visited (4) 800 Robots Destroyed (39) 195 Value Destroyed (956) 956 Prototype IDs (0) 0 Alien Tech Used (0) 0 Bonus (230) 230 TOTAL SCORE: 3181 Bonus ------- High Alert Combat Kills 24 Follower Combat Kills 206 Cogmind --------- Core Integrity 0/550 Matter 116/300 Energy 100/100 System Corruption 0% Temperature Cool (0) Movement Core (50) Location -8/Materials Parts ------- > --- POWER (2) -------- (None) > --- PROPULSION (3) --- (None) > --- UTILITY (3) ------ (None) > --- WEAPON (3) ------- Flail > --- INVENTORY (5) ---- Aluminum Leg Medium Matter Pod (100) Hardened Light Armor Plating Drone Bay (2/2) Peak State ------------ > --- POWER ------------ Light Ion Engine Nuclear Core > --- PROPULSION ------- Aluminum Leg Aluminum Leg Aluminum Leg > --- UTILITY ---------- Medium Storage Unit Drone Bay Drone Bay > --- WEAPON ----------- Light Assault Rifle Mini Grenade Launcher Flail > --- INVENTORY -------- Aluminum Leg Aluminum Leg Medium Matter Pod Hardened Light Armor Plating Drone Bay Light Cannon [Rating: 24] Favorites ----------- Power Ion Engine Engine Ion Engine Power Core Nuclear Core Propulsion Aluminum Leg Treads Light Treads Leg Aluminum Leg Flight Unit Flight Unit Utility Small Storage Unit Device Drone Bay Storage Small Storage Unit Protection Hardened Light Armor Plating Weapon Light Cannon Energy Gun Medium Laser Ballistic Gun Light Assault Rifle Ballistic Cannon Light Cannon Launcher Mini Grenade Launcher Impact Weapon Flail Build | -11 -10 -9 -9 -8 ------- Run | Yrd Mat Mat Sto Mat Slots Evolved 4 | . . 2 . 2 Power 1 | . . . . 1 Propulsion 1 | . . 1 . . Utility 1 | . . . . 1 Weapon 1 | . . 1 . . Parts Attached 50 | 6 14 . 23 7 Power 8 | 1 2 . 2 3 Engine 7 | 1 2 . 2 2 Core 1 | . . . . 1 Reactor . | . . . . . Propulsion 14 | 2 1 . 11 . Treads 4 | . . . 4 . Leg 6 | 2 1 . 3 . Wheel . | . . . . . Hover . | . . . . . Flight 4 | . . . 4 . Utility 11 | 1 4 . 3 3 Device 3 | . . . . 3 Storage 2 | 1 . . 1 . Processor . | . . . . . Hackware . | . . . . . Protection 6 | . 4 . 2 . Artifact . | . . . . . Weapon 17 | 2 7 . 7 1 Energy Gun 1 | 1 . . . . Energy Cannon . | . . . . . Ballistic Gun 3 | 1 . . 2 . Ballistic Cannon 8 | . 7 . . 1 Launcher 4 | . . . 4 . Special Weapon . | . . . . . Impact Weapon 1 | . . . 1 . Slashing Weapon . | . . . . . Piercing Weapon . | . . . . . Special Melee Weapon . | . . . . . Unidentified Prototypes . | . . . . . Corrupted Parts 3 | . . . 3 . System Corruption 14 | . . . 14 . Parts Lost 27 | . . 1 11 15 Power 6 | . . . 2 4 Propulsion 6 | . . . 3 3 Utility 7 | . . . 2 5 Weapon 8 | . . 1 4 3 Highest Loss Streak 8 | . . 1 5 8 To Critical Strikes . | . . . . . Average Slot Usage (%) 82 | . 93 76 75 81 Engine 10 | . 13 11 8 6 Treads 2 | . . . 6 . Leg 19 | . 27 22 11 22 Device 1 | . . . . 8 Storage 11 | . 14 11 11 8 Protection 7 | . 9 11 6 3 Ballistic Gun 6 | . . . 12 8 Ballistic Cannon 10 | . 26 21 . . Launcher 5 | . . . 9 8 Impact Weapon 4 | . . . 7 9 Peak Build Rating 24 | 6 9 9 14 24 Average Rating 9 | 4 7 8 8 17 On Entrance 7 | . 6 9 8 14 Naked Turns . | . . . . . Heaviest Build 36 | 13 21 21 22 36 Greatest Support 40 | 20 20 20 40 30 Greatest Overweight (x) 6 | 1 2 1 6 2 Average Overweight (x) . | . . . . . Largest Inventory Capacity 10 | 8 8 8 10 10 Average Capacity 8 | 6 8 8 9 9 Most Carried 10 | 4 8 8 10 10 Average Carried 5 | 1 6 8 4 7 Final Capacity 10 | 8 8 8 10 5 Final Carried 10 | 1 8 8 10 4 Class Distribution -------------------- 71% | Mutant 9% | Commander-Mutant 8% | Scavenger-Mutant 7% | Tank Dominant Class ---------------- Mutant | -10/Materials Mutant | -9/Materials Mutant | -9/Storage Mutant | -8/Materials Resources | -11 -10 -9 -9 -8 ----------- Run | Yrd Mat Mat Sto Mat Matter Collected 1058 | 244 96 30 545 143 Remotely . | . . . . . Salvage Created 816 | . 141 30 462 183 Parts 59 | . 10 2 36 11 Haulers Intercepted 1 | . . . 1 . Recyclers Shooed . | . . . . . Parts Field Recycled . | . . . . . Retrieved Matter . | . . . . . Parts Self-Destructed . | . . . . . Prevented . | . . . . . Kills | -11 -10 -9 -9 -8 ------- Run | Yrd Mat Mat Sto Mat Combat Hostiles Destroyed 27 | . 4 1 15 7 Guns 5 | . . . 5 . Cannons 5 | . 4 1 . . AOE 16 | . . . 9 7 Classes Destroyed 8 | . 4 . 3 1 Worker 4 | . 1 . . 3 Builder 3 | . . . 1 2 Hauler 1 | . . . 1 . Recycler 1 | . . . . 1 Watcher 3 | . 1 . . 2 Swarmer 10 | . 2 . 5 3 Grunt 8 | . 2 1 3 2 Sentry 9 | . . . 7 2 Best Kill Streak 7 | . 3 1 4 7 Combat Bots Only 4 | . 2 1 3 4 Max Kills in Single Turn 4 | . 2 1 4 2 Gunslinging . | . . . . . Exploded 3 | . . . 3 2 Melee . | . . . . . Uniques/NPCs Destroyed . | . . . . . Combat | -11 -10 -9 -9 -8 -------- Run | Yrd Mat Mat Sto Mat Hostile Shots Fired 293 | . 44 24 100 125 Missed 87 | . 10 6 29 42 Damage Taken 3180 | . 308 202 1006 1664 Core 836 | . 48 22 160 606 Absorbed by Shields . | . . . . . Core Remaining (%) 78 | 100 80 . 54 . Volleys Fired 87 | . 12 2 38 35 Largest 3 | . 2 2 3 1 Hottest 90 | . 70 70 90 35 Shots Fired 123 | . 24 4 60 35 Gun 44 | . . . 44 . Cannon 31 | . 24 4 . 3 Launcher 48 | . . . 16 32 Special . | . . . . . Kinetic 75 | . 24 4 44 3 Thermal . | . . . . . Explosive 48 | . . . 16 32 Electromagnetic . | . . . . . Robot Hit Streak 11 | . 2 2 4 11 Robot Miss Streak 6 | . 4 2 6 4 Penetration Max . | . . . . . Secondary Targets 1 | . . . 1 . Max Gunslinging Chain 1 | . . . 1 . Shots Hit Robots 72 | . 7 1 37 27 Core Hits 73 | . 7 1 32 33 Critical Kills . | . . . . . Critical Parts Destroyed 3 | . . . 1 2 Critical Strikes 5 | . 2 . 1 2 Blast 2 | . 2 . . . Smash 3 | . . . 1 2 Melee Attacks 14 | . . . 11 3 Impact 14 | . . . 11 3 Slashing . | . . . . . Piercing . | . . . . . Sneak Attacks 3 | . . . 1 2 Combat Hostiles . | . . . . . Follow-up Attacks . | . . . . . Damage Inflicted 2822 | . 161 16 1091 1554 Guns 188 | . . . 188 . Cannons 203 | . 157 16 . 30 Explosions 1911 | . . . 633 1278 Melee 510 | . . . 264 246 Ramming 10 | . 4 . 6 . Kinetic 391 | . 157 16 188 30 Thermal . | . . . . . Explosive 1911 | . . . 633 1278 Electromagnetic . | . . . . . Impact 510 | . . . 264 246 Slashing . | . . . . . Piercing . | . . . . . Highest Corruption 17 | . . . 17 . Average Corruption 12 | . . . 12 . Corruption Purged . | . . . . . Corruption Blocked . | . . . . . Effects 28 | . . . 28 . Message Errors 9 | . . . 9 . Matter Fused 7 | . . . 7 . Heat Flow Errors 2 | . . . 2 . Energy Discharges 5 | . . . 5 . Data Loss (minor) 1 | . . . 1 . Misdirections 1 | . . . 1 . Weapon Failures 3 | . . . 3 . Overload Shots . | . . . . . Overflow Damage 314 | . . . 67 247 Projectiles . | . . . . . Explosions 55 | . . . 14 41 Melee 259 | . . . 53 206 Knockbacks 7 | . 3 . 1 3 Impact 3 | . . . 1 2 Kinetic 4 | . 3 . . 1 Secondary . | . . . . . Self-Inflicted Damage 324 | . . . 115 209 Shots 13 | . . . 4 9 Rammed . | . . . . . Targets Rammed 7 | . 4 . 3 . Kicked 7 | . 4 . 3 . Crushed . | . . . . . Highest Temperature 170 | . 164 15 170 35 Average Temperature 43 | . 63 10 41 12 Received Heat Transfer 963 | . 90 108 252 513 Siege Activations . | . . . . . Robots Corrupted 5 | . . . 2 3 Combat Hostiles 1 | . . . 1 . Parts Fried 2 | . . . . 2 Impact Corruptions 8 | . . . 2 6 Robots Melted . | . . . . . Combat Hostiles . | . . . . . Parts Melted 1 | . . . 1 . Heat Transferred . | . . . . . Parts Sabotaged . | . . . . . Parts Stolen . | . . . . . Parts Stripped . | . . . . . Power Chain Reactions . | . . . . . Alert | -11 -10 -9 -9 -8 ------- Run | Yrd Mat Mat Sto Mat Peak Influence 457 | . 158 87 420 457 Initial 133 | . . 66 32 133 Average 156 | . 39 82 223 299 Maximum Alert Level 2 | . . . 2 2 Low Security (%) 69 | 100 100 100 50 32 Level 1 25 | . . . 47 39 Level 2 4 | . . . 1 28 Level 3 . | . . . . . Level 4 . | . . . . . Level 5 . | . . . . . High Security . | . . . . . Max Security . | . . . . . Squads Dispatched 11 | . 2 1 7 1 Investigation 1 | . . . 1 . Extermination . | . . . . . Reinforcement 7 | . 2 1 3 1 Assault . | . . . . . Garrison 3 | . . . 3 . Intercept . | . . . . . Searches Triggered . | . . . . . Construction Impeded 1 | . . . . 1 Haulers Reinforced . | . . . . . Active Scanning Responses . | . . . . . Cargo Convoy Interrupts . | . . . . . Stealth | -11 -10 -9 -9 -8 --------- Run | Yrd Mat Mat Sto Mat Distress Signals 14 | . . 2 7 5 Communications Jammed . | . . . . . Distress Signals . | . . . . . Times Spotted 66 | . 9 4 31 22 Peak Tracking Total 6 | . 4 2 6 5 Tactical Retreats 1 | . . . 1 . Traps | -11 -10 -9 -9 -8 ------- Run | Yrd Mat Mat Sto Mat Traps Triggered 5 | . 4 . 1 . Indirectly . | . . . . . Trap Hack Attempts . | . . . . . Triggered . | . . . . . Disarmed . | . . . . . Reprogrammed . | . . . . . Reused . | . . . . . Traps Extracted . | . . . . . Installed . | . . . . . Triggered . | . . . . . Machines | -11 -10 -9 -9 -8 ---------- Run | Yrd Mat Mat Sto Mat Machines Disabled 6 | . 1 . 3 2 Max in Single Turn 2 | . 1 . 2 1 Machines Repaired . | . . . . . Machines Dismantled . | . . . . . Machines Sabotaged . | . . . . . Overloaded Fab Kills . | . . . . . Hacking | -11 -10 -9 -9 -8 --------- Run | Yrd Mat Mat Sto Mat Machines Accessed 9 | . 1 1 6 1 Terminals 8 | . 1 1 5 1 Fabricators . | . . . . . Repair Stations . | . . . . . Recycling Units 1 | . . . 1 . Scanalyzers . | . . . . . Garrison Access . | . . . . . Total Hacks 18 | . 3 2 10 3 Successful 10 | . 1 . 7 2 Failed 8 | . 2 2 3 1 Catastrophic 5 | . 2 1 2 . Database Lockouts . | . . . . . Manual 1 | . . . 1 . Terminals 16 | . 3 2 8 3 Fabricators . | . . . . . Repair Stations . | . . . . . Recycling Units 2 | . . . 2 . Scanalyzers . | . . . . . Garrison Access . | . . . . . Terminal Hacks 8 | . 1 . 5 2 Open Door 2 | . . . 2 . Branch Access Points 1 | . . . . 1 Terminal Index 1 | . . . . 1 Alert Level 1 | . . . 1 . Unreport Threat 1 | . . . 1 . Patrol Status 1 | . 1 . . . Assault Status 1 | . . . 1 . Fabricator Hacks . | . . . . . Repair Station Hacks . | . . . . . Recycling Unit Hacks 2 | . . . 2 . Report Inventory 1 | . . . 1 . Retrieve Components 1 | . . . 1 . Scanalyzer . | . . . . . Garrison Access Hacks . | . . . . . Unauthorized Hacks . | . . . . . Terminals . | . . . . . Fabricators . | . . . . . Repair Stations . | . . . . . Recycling Units . | . . . . . Scanalyzers . | . . . . . Garrison Access . | . . . . . Data Cores Recovered . | . . . . . Used . | . . . . . Hacking Detections 6 | . 1 1 3 1 Full Trace Events 4 | . 1 1 2 . Feedback Events . | . . . . . Feedback Blocked . | . . . . . Robot Schematics Acquired . | . . . . . Robots Built . | . . . . . Authchips . | . . . . . Time . | . . . . . Total Robot Build Rating . | . . . . . Part Schematics Acquired . | . . . . . Parts Built . | . . . . . Authchips . | . . . . . Time . | . . . . . Total Part Build Rating . | . . . . . Parts Repaired . | . . . . . Time . | . . . . . Parts Recycled . | . . . . . Recycled Matter . | . . . . . Retrieved Matter . | . . . . . Retrieved Components 7 | . . . 7 . Parts Scanalyzed . | . . . . . Part Schematics Acquired . | . . . . . Parts Damaged . | . . . . . Bothacking | -11 -10 -9 -9 -8 ------------ Run | Yrd Mat Mat Sto Mat Used RIF Installer . | . . . . . Robots Hacked . | . . . . . Non-combat . | . . . . . Combat . | . . . . . Robot Hacks Applied . | . . . . . Relay Couplers Released . | . . . . . Fabnet Peak Effective % . | . . . . . Robots Rewired . | . . . . . Allies Hacked . | . . . . . Hacks Repelled . | . . . . . Allies | -11 -10 -9 -9 -8 -------- Run | Yrd Mat Mat Sto Mat Total Allies 10 | . . . 10 . Largest Group 10 | . . . 10 3 Highest-Rated Group 88 | . . . 88 32 Highest-Rated Ally 16 | . . . 16 16 Total Orders . | . . . . . Ally Attacks 69 | . . . 59 10 Total Damage 577 | . . . 486 91 Kills 14 | . . . 11 3 Allies Corrupted . | . . . . . Allies Melted . | . . . . . Intel | -11 -10 -9 -9 -8 ------- Run | Yrd Mat Mat Sto Mat Robot Analysis Total . | . . . . . Derelict Logs Recovered . | . . . . . Drone Launches 6 | . . . . 6 Drone Recoveries 3 | . . . . 3 Exploration | -11 -10 -9 -9 -8 ------------- Run | Yrd Mat Mat Sto Mat Turns Passed 2612 | 140 743 271 1056 402 Spaces Moved 1432 | 115 426 142 571 178 Core 53 | 34 . . 13 6 Treads 178 | . . . 178 . Legs 1159 | 81 426 142 338 172 Wheels . | . . . . . Hover . | . . . . . Flight 42 | . . . 42 . Fastest Speed 50 | 50 120 120 117 120 Average Speed 157 | 111 157 187 154 177 Slowest Speed 350 | 120 260 190 350 190 Overloaded Moves . | . . . . . Propulsion Burnouts . | . . . . . Robots Hopped . | . . . . . Cave-ins Triggered 1 | . . . 1 . Exploration Rate (%) 29 | 6 45 11 63 23 Regions Visited 4 Branch Regions 1 Pre-discovered Areas . | . . . . . Known Exits Taken . | . . . . . Unknown Exits Taken 4 | 1 1 1 1 . Scrap Searched . | . . . . . Spaces Dug . | . . . . . Terrain Destroyed 277 | . . . 130 147 Melee . | . . . . . Projectile . | . . . . . AOE 277 | . . . 130 147 Terrain Rammed . | . . . . . Walls Destroyed . | . . . . . Machines Disabled . | . . . . . Actions | -11 -10 -9 -9 -8 --------- Run | Yrd Mat Mat Sto Mat Total 1650 | 127 467 143 688 225 Wait . | . . . . . Move 1428 | 114 425 141 570 178 Hop . | . . . . . Pick Up 43 | 7 9 . 25 2 Fast Attach 11 | . 11 . . . Attach 39 | 6 3 . 23 7 Detach 11 | . 2 . 9 . Swap . | . . . . . Drop 10 | . 1 . 9 . Fire 87 | . 12 2 38 35 Melee 14 | . . . 11 3 Ram . | . . . . . Kick 7 | . 4 . 3 . Crush . | . . . . . Escape Stasis . | . . . . . Rewire . | . . . . . Trap . | . . . . . Miscellaneous . | . . . . . Route ------- -11/Scrapyard -10/Materials -9/Materials -9/Storage -8/Materials (discovered 1 exit: [*Fac]) History --------- Turn | Location | Event 11 | -11/Scrapyard | Discovered new exit (range 15) 141 | -11/Scrapyard | Entered Materials 301 | -10/Materials | Build established: Mutant 707 | -10/Materials | Discovered new exit (range 15) 884 | -10/Materials | Entered another Materials area 884 | -9/Materials | Evolved 2 slots: Propulsion x1, Weapon x1 1035 | -9/Materials | Discovered new exit (range 10) 1155 | -9/Materials | Entered Storage 1229 | -9/Storage | Lost 3 parts (1n1u1w) 1425 | -9/Storage | Crushed by falling debris 1461 | -9/Storage | Lost 5 parts (1p1u3w) 1566 | -9/Storage | System corruption reached 10% 1739 | -9/Storage | Lost 3 parts (1p2n) 1901 | -9/Storage | Assisted by bots powering up and referring to "LRC-V3" 1901 | -9/Storage | Garrison activated, responded to threat 1965 | -9/Storage | Lost 3 allies 2159 | -9/Storage | Discovered new exit (range 16) 2201 | -9/Storage | Lost 3 allies 2211 | -9/Storage | Entered Materials 2211 | -8/Materials | Accompanied by 3 allies 2211 | -8/Materials | Evolved 2 slots: Power x1, Utility x1 2317 | -8/Materials | Lost 4 allies 2400 | -8/Materials | Lost 4 parts (2p2u) 2588 | -8/Materials | Discovered new exit (range 15) 2597 | -8/Materials | Core integrity fell below 50% 2610 | -8/Materials | Core integrity fell below 20% 2613 | -8/Materials | Destroyed by H-61 Shepherd with Heavy Assault Cannon Last Messages --------------- W-25 Informer suffers critical hit (Smash). Destroyed Imp. Hover Unit. W-25 Informer system corrupted by crushing effect. W-25 Informer system terminally corrupted. Imp. Hover Unit fried. K-01 Serf collects debris. R-06 Scavenger collects Aluminum Leg. Sneak attack on K-01 Serf. K-01 Serf suffers critical hit (Smash). Destroyed Sml. Matter Pod. Destroyed Lgt. Ion Engine. Destroyed Wheel. K-01 Serf system corrupted by crushing effect. K-01 Serf knocked back. K-01 Serf system terminally corrupted. Acquired 19 matter. Penetrated by Slug. G-47 Trooper destroyed. Nuclear Core destroyed. Critical hit (Blast). Map ----- +----------------------------------------------------+ | ######## # ## ###### #??????????????????? | | # ## #?####+#######????????????? | | + ## #?# #????????????? | | % # ## #?## [ #????????????? | | ##### # ## #??# #????????????? | | ????# # ## #??# [ #????????????? | | ????#! !# ## #### """ #????????????? | | ????##!!!! # # # ## """ #????????????? | | ?????##### ## # """ #????????????? | | ?????????# ####+### ## ## % #????????????? | | ?????????# # #### ##########+######?????????? | | ??????????# # % #??????? | | ??????????# # % #??????? | | ????????????# * #??????? | | ????????????# ###+##=%g######+##### #??????? | | ?????????######+# # #% # #?? #??????? | | ?????????# # # r ## """ #??? #??????? | | ?????????# # # % # """ #???????????? | | ?????????# # # % ## """ #???????????? | | ?????????# """ """ # #% # ????????????? | | ?????????# """ """ # #% ## """ ????????????? | | ?????????# """ """ # # ## """ ????????????? | | ?????????# ##### ;; ] """?????????????? | | ?????????#? #?### %# #???????????? | | ???????????###########; ###+######???????????? | | ?????????? @ ????????? | | ?????????? g l ????????? | | ?????????? ????????? | | ???????????#+######+### ###+########?????????? | | ????????????????? ??## ##????????????????????? | | ???????????????? ????# #?????????????????????? | | ???????????????# ?????# H #?????????????????????? | | ???????????????# ??????# #?????????????????????? | | ???????????????#???????# #?????????????????????? | | ???????????????????????# < #?????????????????????? | | ???????????????????????# #?????????????????????? | | ???????????????????????#####?????????????????????? | | ?????????????????????????????????????????????????? | | ?????????????????????????????????????????????????? | | ?????????????????????????????????????????????????? | | ?????????????????????????????????????????????????? | | ?????????????????????????????????????????????????? | | ?????????????????????????????????????????????????? | | ?????????????????????????????????????????????????? | | ?????????????????????????????????????????????????? | | ?????????????????????????????????????????????????? | | ?????????????????????????????????????????????????? | | ?????????????????????????????????????????????????? | | ?????????????????????????????????????????????????? | | ?????????????????????????????????????????????????? | +----------------------------------------------------+ Best States ------------- Heat Dissipation 31 Energy Generation 19 Energy Capacity 415 Matter Stores 300 Matter Capacity 300 Sight Range 16 Terrain Scan Density 10 Armor Coverage 150 Evasion (%) 55 Recoil Reduction 2 Item Schematics ----------------- None Robot Schematics ------------------ None Fabricated ------------ Nothing Alien Tech Used ----------------- None Achievements -------------- Let's See Who's Tougher System Compromised The More The Merrier Unlikely Earthworm Challenges ------------ None Game ------ Seed SpectralStormCutter Manual? 0 Play Time 00:40:31 Cumulative 1.7 hours Start 2025.01.13 @ 16:55:03 End 2025.01.13 @ 23:28:17 Sessions 5 Manual Loads 0 Difficulty Rogue Special Mode None Game No. 4 Rogue 4 Adventurer 0 Explorer 0 Win Type - Total 0 Types 0/0/0/0/0/0/0/0/0 Lore% 0 Gallery% 4 Achievement% 7 Wizard Run 0 Options --------- Layout 0 ASCII 0 Keyboard 1 Movement Arrows Keybinds 0 Fullscreen 1 Font 18/SmallcapsGlow Map View 38x25 Zoom Use 99% Tactical HUD 0 Map Filters NONE Filters NONE Steam 1 RUN: e49491e4-6b78-4005-9f6a-c678a84adc80